bitfinex/quotes_BTCUSD_20240730
["timestamp","ask_amount","ask_price","bid_price","bid_amount"]
[1722342129443,3.4041308,66634.0,66633.0,0.83044255]
[1722342129646,3.4181308,66634.0,66633.0,0.83044255]
[1722342129847,3.4041308,66634.0,66633.0,0.83044255]
[1722342130036,3.44540916,66634.0,66633.0,0.83044255]
[1722342130269,3.4181308,66634.0,66633.0,0.83044255]
[1722342130474,3.45940916,66634.0,66633.0,0.83044255]
[1722342130803,3.41812947,66634.0,66633.0,0.83044255]
[1722342131184,3.11798247,66634.0,66633.0,0.83044255]
[1722342131357,3.02263531,66634.0,66633.0,0.83044255]
[1722342132777,3.02263531,66634.0,66633.0,0.81551311]
[1722342132989,3.02263531,66634.0,66633.0,0.83048452]
[1722342134003,3.03263585,66634.0,66633.0,0.83048452]
[1722342134230,3.02263585,66634.0,66633.0,0.83048452]
[1722342134639,3.02263568,66634.0,66633.0,0.83048452]
[1722342135019,3.08281768,66634.0,66633.0,0.83048452]
[1722342135220,3.09281768,66634.0,66633.0,0.83048452]
[1722342135391,3.10281768,66634.0,66633.0,0.83048452]
[1722342135933,3.10281768,66634.0,66633.0,0.81551311]
[1722342136134,3.12637686,66634.0,66633.0,0.81551311]
[1722342136274,3.09349908,66634.0,66633.0,0.83048452]
[1722342136561,3.10281869,66634.0,66633.0,0.83048452]
[1722342136935,3.13952564,66634.0,66633.0,0.83048452]
[1722342137533,3.13952591,66634.0,66633.0,0.83048452]
[1722342137905,3.13952591,66634.0,66633.0,0.81551311]
[1722342139326,3.13952591,66634.0,66633.0,0.83048452]
[1722342139616,3.13952591,66634.0,66633.0,0.80692567]
[1722342140019,3.13952591,66634.0,66633.0,0.79195426]
[1722342140665,3.09349908,66634.0,66633.0,0.79195426]
[1722342140843,3.13980102,66634.0,66633.0,0.74831426]
[1722342141013,3.18107938,66634.0,66633.0,0.76328567]
[1722342141231,3.43994802,66634.0,66633.0,0.76328567]
[1722342141615,3.43994802,66634.0,66633.0,0.74831426]
[1722342141811,3.13980102,66634.0,66633.0,0.74831426]
[1722342142022,3.18107938,66634.0,66633.0,0.74831426]
[1722342142441,3.48122638,66634.0,66633.0,0.74831426]
[1722342142812,3.18107938,66634.0,66633.0,0.74831426]
[1722342143201,3.18107938,66634.0,66633.0,0.70342426]
[1722342143427,4.27192302,66634.0,66633.0,0.6439607]
[1722342143781,4.28526602,66634.0,66633.0,0.6439607]
[1722342143986,4.23896408,66634.0,66633.0,0.6439607]
[1722342144269,4.15494119,66634.0,66633.0,0.6439607]
[1722342145610,4.14094119,66634.0,66633.0,0.6439607]
[1722342145821,3.69521319,66634.0,66633.0,0.62890612]
[1722342146021,3.36735102,66634.0,66633.0,0.62890612]
[1722342146465,3.64398971,66634.0,66633.0,0.62890612]
[1722342147220,3.60689232,66634.0,66633.0,0.62890612]
[1722342147421,3.64410823,66634.0,66633.0,0.62890612]
[1722342147648,3.33203323,66634.0,66633.0,0.62890612]
[1722342147877,3.27193323,66634.0,66633.0,0.62890612]
[1722342148316,3.57208023,66634.0,66633.0,0.56628612]
[1722342149113,3.61335859,66634.0,66633.0,0.56628612]
[1722342149707,3.63691731,66634.0,66633.0,0.56628612]
[1722342150453,3.61335859,66634.0,66633.0,0.56628612]
[1722342150917,3.57208023,66634.0,66633.0,0.56628612]
[1722342151522,4.71607823,66634.0,66633.0,0.56628612]
[1722342152077,4.50919723,66634.0,66633.0,0.56628612]
[1722342152249,4.21393223,66634.0,66633.0,0.56628612]
[1722342152424,3.91775623,66634.0,66633.0,0.56628612]
[1722342152631,3.58981023,66634.0,66633.0,0.56628612]
[1722342152833,3.34132423,66634.0,66633.0,0.56628612]
[1722342153233,3.40640492,66634.0,66633.0,0.56628612]
[1722342153433,3.07759185,66634.0,66633.0,0.56628612]
[1722342153634,2.65729753,66634.0,66633.0,0.56628612]
[1722342153834,2.33359191,66634.0,66633.0,0.56628612]
[1722342154039,2.26405776,66634.0,66633.0,0.64578612]
[1722342154259,2.31074057,66634.0,66633.0,0.64578612]
[1722342154425,2.31074057,66634.0,66633.0,0.66076385]
[1722342154426,2.46143489,66634.0,66633.0,0.66076385]
[1722342154782,2.46121379,66634.0,66633.0,0.66076385]
[1722342155432,2.47077129,66634.0,66633.0,0.66076385]
[1722342155638,2.50777129,66634.0,66633.0,0.66076385]
[1722342156048,2.50777129,66634.0,66633.0,0.64578612]
[1722342156447,2.50777129,66634.0,66633.0,0.66076385]
[1722342157471,2.50790331,66634.0,66633.0,0.66076385]
[1722342157631,2.65925763,66634.0,66633.0,0.66076385]
[1722342157830,2.50790331,66634.0,66633.0,0.66076385]
[1722342158100,2.63570013,66634.0,66633.0,0.66076385]
[1722342158293,2.50434581,66634.0,66633.0,0.56628612]
[1722342158499,2.69674581,66634.0,66633.0,0.56628612]
[1722342158646,2.91747086,66634.0,66633.0,0.58126385]
[1722342158848,2.99689281,66634.0,66633.0,0.56628612]
[1722342159073,3.21761786,66634.0,66633.0,0.58126385]
[1722342159340,2.99689281,66634.0,66633.0,0.56628612]
[1722342159547,3.21761786,66634.0,66633.0,0.56628612]
[1722342159882,2.99689281,66634.0,66633.0,0.56628612]
[1722342160096,2.99689281,66634.0,66633.0,0.42290514]
[1722342160097,3.67623981,66634.0,66633.0,0.42290514]
[1722342160303,4.06427617,66634.0,66633.0,0.42290514]
[1722342160503,4.06427617,66634.0,66633.0,0.39490514]
[1722342160760,4.06372913,66634.0,66633.0,0.39490514]
[1722342161387,4.04601023,66634.0,66633.0,0.39490514]
[1722342162161,4.08728859,66634.0,66633.0,0.39490514]
[1722342162557,4.06372913,66634.0,66633.0,0.39490514]
[1722342162907,4.00845077,66634.0,66633.0,0.39490514]
[1722342163115,4.00845077,66634.0,66633.0,0.37684341]
[1722342163291,4.02245077,66634.0,66633.0,0.37684341]
[1722342163494,4.04972913,66634.0,66633.0,0.37684341]
[1722342163729,4.04972913,66634.0,66633.0,0.36206485]
[1722342163912,4.02245077,66634.0,66633.0,0.36206485]
[1722342164117,4.06377857,66634.0,66633.0,0.36206485]
[1722342164403,4.02250022,66634.0,66633.0,0.36206485]
[1722342164555,3.97640408,66634.0,66633.0,0.36206485]
[1722342164761,4.06369802,66634.0,66633.0,0.36206485]
[1722342164957,4.02241966,66634.0,66633.0,0.36206485]
[1722342165390,4.06369802,66634.0,66633.0,0.36206485]
[1722342165784,4.08725704,66634.0,66633.0,0.31704485]
[1722342166356,4.08725704,66634.0,66633.0,0.29898476]
[1722342166759,3.74056011,66634.0,66633.0,0.29898476]
[1722342166936,4.81555111,66634.0,66633.0,0.29898476]
[1722342167371,4.61926975,66634.0,66633.0,0.29898476]
[1722342167687,4.83609492,66634.0,66633.0,0.29898476]
[1722342167890,4.21802492,66634.0,66633.0,0.29898476]
[1722342168084,3.86892492,66634.0,66633.0,0.29898476]
[1722342168280,3.7182306,66634.0,66633.0,0.29898476]
[1722342168481,3.3011976,66634.0,66633.0,0.29898476]
[1722342168690,3.3236976,66634.0,66633.0,0.29898476]
[1722342169287,3.4015506,66634.0,66633.0,0.29898476]
[1722342169679,3.2271506,66634.0,66633.0,0.29898476]
[1722342169870,3.0117506,66634.0,66633.0,0.29898476]
[1722342170112,3.0117506,66634.0,66633.0,0.37888476]
[1722342170113,2.7016036,66634.0,66633.0,0.37888476]
[1722342170314,2.7016036,66634.0,66633.0,0.44418476]
[1722342170666,2.63205776,66634.0,66633.0,0.44418476]
[1722342170872,2.82862625,66634.0,66633.0,0.44418476]
[1722342171306,2.81462625,66634.0,66633.0,0.44418476]
[1722342171522,2.82862625,66634.0,66633.0,0.44418476]
[1722342171803,2.67783193,66634.0,66633.0,0.44418476]
[1722342171994,2.70083193,66634.0,66633.0,0.44418476]
[1722342172946,2.70073162,66634.0,66633.0,0.44418476]
[1722342173377,2.71073162,66634.0,66633.0,0.29898476]
[1722342173819,3.01087862,66634.0,66633.0,0.29898476]
[1722342173980,3.18513112,66634.0,66633.0,0.29898476]
[1722342174397,3.16144743,66634.0,66633.0,0.29898476]
[1722342175935,3.35384743,66634.0,66633.0,0.29898476]
[1722342176437,3.5746784,66634.0,66633.0,0.29898476]
[1722342176664,3.05370043,66634.0,66633.0,0.29898476]
[1722342177235,3.07725861,66634.0,66633.0,0.29898476]
[1722342177795,3.05363702,66634.0,66633.0,0.29898476]
[1722342178128,3.35378402,66634.0,66633.0,0.29898476]
[1722342178645,3.37378402,66634.0,66633.0,0.29898476]
[1722342178839,4.39079602,66634.0,66633.0,0.29898476]
[1722342179035,3.94651002,66634.0,66633.0,0.29898476]
[1722342179245,3.92535702,66634.0,66633.0,0.29898476]
[1722342179495,3.62179202,66634.0,66633.0,0.29898476]
[1722342179901,3.64179202,66634.0,66633.0,0.29898476]
[1722342180129,3.61037702,66634.0,66633.0,0.29898476]
[1722342180261,3.59037702,66634.0,66633.0,0.29898476]
[1722342180653,3.56834334,66634.0,66633.0,0.29898476]
[1722342180861,3.61415237,66634.0,66633.0,0.29898476]
[1722342181910,3.50945937,66634.0,66633.0,0.29898476]
[1722342182321,3.53301764,66634.0,66633.0,0.29898476]
[1722342182921,3.55301764,66634.0,66633.0,0.29898476]
[1722342183390,3.50720861,66634.0,66633.0,0.29898476]
[1722342183522,3.63328157,66634.0,66633.0,0.29898476]
[1722342183725,3.93342857,66634.0,66633.0,0.29898476]
[1722342183922,3.93325741,66634.0,66633.0,0.29898476]
[1722342184618,3.90970615,66634.0,66633.0,0.29898476]
[1722342184789,3.95098451,66634.0,66633.0,0.29898476]
[1722342185732,3.6507556,66634.0,66633.0,0.29898476]
[1722342185905,3.60947724,66634.0,66633.0,0.29898476]
[1722342186120,3.6507556,66634.0,66633.0,0.29898476]
[1722342186273,3.9509026,66634.0,66633.0,0.29898476]
[1722342186479,4.10453266,66634.0,66633.0,0.29898476]
[1722342186682,4.10453606,66634.0,66633.0,0.29898476]
[1722342187284,3.67248906,66634.0,66633.0,0.29898476]
[1722342187488,4.42979006,66634.0,66633.0,0.29898476]
[1722342187900,4.72993706,66634.0,66633.0,0.29898476]
[1722342188106,4.6886587,66634.0,66633.0,0.29898476]
[1722342189018,4.9250237,66634.0,66633.0,0.29898476]
[1722342189218,4.7250237,66634.0,66633.0,0.29898476]
[1722342189955,4.67950041,66634.0,66633.0,0.29898476]
[1722342190158,4.7250062,66634.0,66633.0,0.29898476]
[1722342191957,4.7110062,66634.0,66633.0,0.29898476]
[1722342192127,4.7250062,66634.0,66633.0,0.29898476]
[1722342192325,5.1154032,66634.0,66633.0,0.29898476]
[1722342192525,5.1154032,66634.0,66624.0,0.009284]
[1722342192526,1.821828,66625.0,66624.0,0.009284]
[1722342192896,4.46172174,66625.0,66624.0,0.009284]
[1722342193117,4.8372559,66625.0,66624.0,0.009284]
[1722342193313,5.33993798,66625.0,66624.0,0.009284]
[1722342193436,5.37554357,66625.0,66624.0,0.009284]
[1722342193844,5.3666018,66625.0,66624.0,0.009284]
[1722342194064,1.981306,66622.0,66621.0,0.009284]
[1722342194264,1.981306,66622.0,66607.0,0.0619]
[1722342194265,0.903098,66615.0,66604.0,0.0081205]
[1722342194487,3.35651389,66615.0,66604.0,0.0081205]
[1722342194687,3.62641989,66615.0,66604.0,0.0081205]
[1722342194897,4.22688389,66615.0,66604.0,0.0081205]
[1722342195106,4.25681477,66615.0,66604.0,0.0081205]
[1722342195302,4.19312777,66615.0,66604.0,0.0081205]
[1722342195502,3.95184941,66615.0,66604.0,0.0081205]
[1722342195746,4.0891755,66615.0,66604.0,0.0081205]
[1722342195951,4.12674239,66615.0,66604.0,0.0081205]
[1722342196147,3.49966262,66615.0,66604.0,0.0081205]
[1722342196348,2.67172705,66615.0,66610.0,0.0606]
[1722342196528,2.67172705,66615.0,66604.0,0.0081205]
[1722342196529,2.66378822,66615.0,66604.0,0.0081205]
[1722342196727,2.64378822,66615.0,66609.0,0.0606]
[1722342196931,2.67106658,66615.0,66609.0,0.0606]
[1722342197147,2.67063106,66615.0,66609.0,0.0606]
[1722342197374,2.69063106,66615.0,66609.0,0.0606]
[1722342197560,3.7547609,66615.0,66609.0,0.0606]
[1722342197763,3.61276859,66615.0,66609.0,0.0606]
[1722342198076,3.76384796,66615.0,66609.0,0.0606]
[1722342198283,3.61276859,66615.0,66609.0,0.0606]
[1722342199048,3.62676859,66615.0,66609.0,0.0606]
[1722342199275,3.61276859,66615.0,66609.0,0.0606]
[1722342199510,3.28035823,66615.0,66609.0,0.0606]
[1722342199689,3.28035823,66615.0,66614.0,0.154295]
[1722342199690,2.59038655,66615.0,66614.0,0.154295]
[1722342199894,2.14374301,66615.0,66614.0,0.154295]
[1722342200094,0.51905311,66615.0,66614.0,0.154295]
[1722342200302,0.05956758,66615.0,66614.0,0.154295]
[1722342200864,0.04556758,66615.0,66614.0,0.154295]
[1722342201722,0.01,66633.0,66614.0,0.154295]
[1722342201723,0.12757607,66625.0,66616.0,0.300226]
[1722342201925,0.01398013,66624.0,66617.0,0.00300158]
[1722342202076,0.01398013,66624.0,66618.0,0.1405]
[1722342202279,0.01568084,66625.0,66620.0,0.0802]
[1722342202538,0.01568084,66625.0,66624.0,0.0627]
[1722342202751,0.02965973,66625.0,66624.0,0.1289]
[1722342202915,0.17975273,66625.0,66624.0,0.1289]
[1722342203121,0.50349965,66625.0,66624.0,0.1289]
[1722342203320,0.48028111,66625.0,66624.0,0.1149]
[1722342203644,0.46596084,66625.0,66624.0,0.1149]
[1722342203877,0.5802786,66625.0,66624.0,0.1149]
[1722342204049,0.2940916,66625.0,66624.0,0.1149]
[1722342204281,0.1439986,66625.0,66624.0,0.1149]
[1722342205370,0.02968084,66625.0,66624.0,0.1149]
[1722342205573,0.02968084,66625.0,66624.0,0.276486]
[1722342205730,1.00074,66634.0,66629.0,0.0826]
[1722342205956,1.00074,66634.0,66633.0,0.150075]
[1722342206160,1.00074,66634.0,66632.0,0.0826]
[1722342206540,1.00074,66634.0,66633.0,0.15666748]
[1722342206672,1.02429327,66634.0,66633.0,0.15666748]
[1722342207431,1.02429327,66634.0,66633.0,0.15766748]
[1722342207626,1.02429327,66634.0,66633.0,0.15666748]
[1722342208078,1.02429327,66634.0,66633.0,0.95572904]
[1722342208247,0.80779327,66634.0,66633.0,0.95272793]
[1722342208445,0.80779327,66634.0,66633.0,0.90704448]
[1722342208669,0.80779327,66634.0,66633.0,0.15666748]
[1722342208873,0.80779327,66634.0,66633.0,0.30674248]
[1722342209194,0.80779327,66634.0,66633.0,0.60689348]
[1722342209419,0.80779327,66634.0,66633.0,0.90704448]
[1722342209623,0.80779327,66634.0,66633.0,0.99774893]
[1722342209823,0.80779327,66634.0,66633.0,1.00474893]
[1722342211188,0.80779327,66634.0,66633.0,1.30489993]
[1722342211506,0.80779327,66634.0,66633.0,1.21419548]
[1722342211713,0.80779327,66634.0,66633.0,0.91404448]
[1722342212157,0.80779327,66634.0,66633.0,0.61389348]
[1722342212355,0.80779327,66634.0,66633.0,0.31374248]
[1722342212555,0.80779327,66634.0,66633.0,0.16366748]
[1722342213047,0.80779327,66634.0,66633.0,0.31374248]
[1722342213452,0.80779327,66634.0,66633.0,0.16366748]
[1722342213880,0.80779327,66634.0,66633.0,0.31374248]
[1722342215863,0.80779327,66634.0,66633.0,0.91404448]
[1722342216297,0.80779327,66634.0,66633.0,0.61389348]
[1722342217946,0.70779327,66634.0,66633.0,0.61389348]
[1722342219762,0.70779327,66634.0,66633.0,0.31374248]
[1722342219971,0.70779327,66634.0,66633.0,0.61389348]
[1722342220379,0.70779327,66634.0,66633.0,0.91404448]
[1722342223734,0.70779327,66634.0,66633.0,0.61389348]
[1722342224954,0.70779327,66634.0,66633.0,0.61480648]
[1722342226394,0.70779327,66634.0,66633.0,0.16458048]
[1722342226777,0.68424,66634.0,66633.0,0.16458048]
[1722342227140,0.68424,66634.0,66633.0,0.10388048]
[1722342227556,0.68424,66634.0,66633.0,0.090513]
[1722342227749,1.13446,66634.0,66633.0,0.007913]
[1722342228572,1.434607,66634.0,66633.0,0.007913]
[1722342228993,1.534607,66634.0,66633.0,0.007913]
[1722342229743,1.534607,66634.0,66633.0,0.000913]
[1722342229946,1.55816204,66634.0,66633.0,0.000913]
[1722342230184,1.85830904,66634.0,66633.0,0.000913]
[1722342230384,1.92350904,66634.0,66633.0,0.000913]
[1722342230633,1.9389117,66634.0,66633.0,0.000913]
[1722342232087,1.6387647,66634.0,66633.0,0.000913]
[1722342232705,1.9389117,66634.0,66633.0,0.000913]
[1722342232939,1.9389651,66634.0,66633.0,0.000913]
[1722342233147,1.92350904,66634.0,66633.0,0.000913]
[1722342234790,1.93902435,66634.0,66633.0,0.000913]
[1722342237090,1.899954,66634.0,66633.0,0.000913]
[1722342238725,1.599807,66634.0,66633.0,0.000913]
[1722342239708,1.899954,66634.0,66633.0,0.000913]
[1722342240282,1.62336414,66634.0,66633.0,0.000913]
[1722342241231,1.63249473,66634.0,66633.0,0.000913]
[1722342241877,1.93264173,66634.0,66633.0,0.000913]
[1722342242906,2.08333605,66634.0,66633.0,0.000913]
[1722342243108,2.10633605,66634.0,66633.0,0.000913]
[1722342243729,2.41648305,66634.0,66633.0,0.000913]
[1722342243932,2.51858305,66634.0,66633.0,0.000913]
[1722342244154,2.49858305,66634.0,66633.0,0.001913]
[1722342244933,2.49858305,66634.0,66633.0,0.000913]
[1722342245292,2.49858305,66634.0,66633.0,0.001913]
[1722342245882,2.34788873,66634.0,66633.0,0.001913]
[1722342246119,2.35788873,66634.0,66633.0,0.001913]
[1722342246316,2.34788873,66634.0,66633.0,0.001913]
[1722342247021,2.34788873,66634.0,66633.0,0.000913]
[1722342247221,2.34788873,66634.0,66633.0,0.001913]
[1722342247422,2.36088873,66634.0,66633.0,0.001913]
[1722342247756,2.49858305,66634.0,66633.0,0.000913]
[1722342247951,2.51158305,66634.0,66633.0,0.001913]
[1722342248153,2.05074173,66634.0,66633.0,0.001913]
[1722342248359,2.01418459,66634.0,66633.0,0.000913]
[1722342248522,1.90908459,66634.0,66633.0,0.001913]
[1722342248716,1.92208459,66634.0,66633.0,0.001913]
[1722342248921,1.62193759,66634.0,66633.0,0.001913]
[1722342249159,1.92208459,66634.0,66633.0,0.001913]
[1722342250051,1.90908459,66634.0,66633.0,0.000913]
[1722342251113,1.92308459,66634.0,66633.0,0.001913]
[1722342251424,1.90908459,66634.0,66633.0,0.000913]
[1722342251834,1.91808459,66634.0,66633.0,0.001913]
[1722342252246,2.06877891,66634.0,66633.0,0.001913]
[1722342252423,2.28630635,66634.0,66633.0,0.001913]
[1722342252625,2.17457891,66634.0,66633.0,0.001913]
[1722342253626,2.16557891,66634.0,66633.0,0.000913]
[1722342253810,2.17957891,66634.0,66633.0,0.000913]
[1722342254215,2.16557891,66634.0,66633.0,0.000913]
[1722342254415,2.17957891,66634.0,66633.0,0.000913]
[1722342254816,2.14058139,66634.0,66633.0,0.000913]
[1722342255015,2.02888459,66634.0,66633.0,0.000913]
[1722342255439,2.01488459,66634.0,66633.0,0.000913]
[1722342256103,2.03844376,66634.0,66633.0,0.000913]
[1722342256273,2.01488459,66634.0,66633.0,0.000913]
[1722342256474,2.24092607,66634.0,66633.0,0.000913]
[1722342256677,2.38500358,66634.0,66633.0,0.000913]
[1722342256878,2.25092607,66634.0,66633.0,0.000913]
[1722342257054,2.69915058,66634.0,66633.0,0.000913]
[1722342257254,2.76785616,66634.0,66633.0,0.000913]
[1722342257505,2.63377865,66634.0,66633.0,0.000913]
[1722342258043,2.76785099,66634.0,66633.0,0.000913]
[1722342258282,2.65377865,66634.0,66633.0,0.000913]
[1722342258492,2.66945949,66634.0,66633.0,0.000913]
[1722342259725,2.6930188,66634.0,66633.0,0.000913]
[1722342260134,2.71808756,66634.0,66633.0,0.000913]
[1722342260281,2.69452825,66634.0,66633.0,0.000913]
[1722342260447,2.64918363,66634.0,66633.0,0.000913]
[1722342260828,2.66918363,66634.0,66633.0,0.000913]
[1722342260948,2.71452825,66634.0,66633.0,0.000913]
[1722342262520,2.96933063,66634.0,66633.0,0.000913]
[1722342262726,3.10492525,66634.0,66633.0,0.000913]
[1722342262924,4.40487131,66634.0,66633.0,0.000913]
[1722342263157,1.491944,66615.0,66606.0,0.079]
[1722342263377,1.36014257,66615.0,66606.0,0.079]
[1722342263577,1.3837054,66615.0,66606.0,0.079]
[1722342263752,1.31527483,66615.0,66606.0,0.079]
[1722342263956,1.49595715,66615.0,66606.0,0.079]
[1722342264561,1.47239432,66615.0,66606.0,0.079]
[1722342264776,1.96866526,66615.0,66606.0,0.079]
[1722342265031,1.96866526,66615.0,66604.0,0.0081205]
[1722342265032,1.61717955,66615.0,66604.0,0.0081205]
[1722342265198,3.12822774,66615.0,66604.0,0.0081205]
[1722342265402,3.29451327,66615.0,66604.0,0.0081205]
[1722342265808,3.29442052,66615.0,66604.0,0.0081205]
[1722342266213,3.10804863,66615.0,66604.0,0.0081205]
[1722342266388,2.47883896,66615.0,66604.0,0.0081205]
[1722342266588,2.49558112,66615.0,66604.0,0.0081205]
[1722342266824,2.86081812,66615.0,66604.0,0.0081205]
[1722342267165,2.72695801,66615.0,66604.0,0.0081205]
[1722342267298,2.71595801,66615.0,66604.0,0.0081205]
[1722342267505,3.01619001,66615.0,66604.0,0.0081205]
[1722342267698,3.05019001,66615.0,66604.0,0.0081205]
[1722342268040,3.07375555,66615.0,66604.0,0.0081205]
[1722342268245,3.03619001,66615.0,66604.0,0.0081205]
[1722342268690,3.18401508,66615.0,66604.0,0.0081205]
[1722342268862,3.05019001,66615.0,66604.0,0.0081205]
[1722342269079,2.87164501,66615.0,66604.0,0.0081205]
[1722342269311,2.83456701,66615.0,66604.0,0.0081205]
[1722342269459,2.96840527,66615.0,66604.0,0.0081205]
[1722342270381,2.83459833,66615.0,66604.0,0.0081205]
[1722342270596,3.15746229,66615.0,66604.0,0.0081205]
[1722342271004,3.14346229,66615.0,66604.0,0.0081205]
[1722342271366,3.15746229,66615.0,66604.0,0.0081205]
[1722342271732,3.16702884,66615.0,66604.0,0.0081205]
[1722342271911,3.20458944,66615.0,66604.0,0.0081205]
[1722342273222,3.95921684,66615.0,66604.0,0.0081205]
[1722342273384,1.873923,66605.0,66604.0,0.0081205]
[1722342273587,2.32710239,66605.0,66604.0,0.0081205]
[1722342273822,1.98397548,66605.0,66604.0,0.0081205]
[1722342274344,1.93147823,66605.0,66604.0,0.0081205]
[1722342274699,1.94547823,66605.0,66604.0,0.0081205]
[1722342274905,2.09617255,66605.0,66604.0,0.0081205]
[1722342275302,2.11617255,66605.0,66604.0,0.0081205]
[1722342275509,2.11615772,66605.0,66604.0,0.0081205]
[1722342276879,2.09610996,66605.0,66604.0,0.0081205]
[1722342277255,2.1196784,66605.0,66604.0,0.0081205]
[1722342277628,2.0492784,66605.0,66604.0,0.0081205]
[1722342277830,2.0292784,66605.0,66604.0,0.0081205]
[1722342278042,2.0492784,66605.0,66604.0,0.0081205]
[1722342278472,2.0392784,66605.0,66604.0,0.0081205]
[1722342278784,1.93193123,66605.0,66604.0,0.0081205]
[1722342279277,1.92677585,66605.0,66604.0,0.0081205]
[1722342279481,1.91677585,66605.0,66604.0,0.0081205]
[1722342279639,1.87143123,66605.0,66604.0,0.0081205]
[1722342280434,1.88061969,66605.0,66604.0,0.0081205]
[1722342281174,1.92596431,66605.0,66604.0,0.0081205]
[1722342281399,1.88061969,66605.0,66604.0,0.0081205]
[1722342281986,1.92596431,66605.0,66604.0,0.0081205]
[1722342282217,1.58034269,66605.0,66604.0,0.0081205]
[1722342282348,1.23724837,66605.0,66604.0,0.0081205]
[1722342282549,1.21424837,66605.0,66604.0,0.0081205]
[1722342282754,0.91397137,66605.0,66604.0,0.0096747]
[1722342283292,1.21424837,66605.0,66604.0,0.0096747]
[1722342283502,0.91397137,66605.0,66604.0,0.0081205]
[1722342283708,0.91397137,66605.0,66604.0,0.0096747]
[1722342284091,1.21424837,66605.0,66604.0,0.0096747]
[1722342284288,0.91397137,66605.0,66604.0,0.0081205]
[1722342284496,0.98180007,66605.0,66604.0,0.0096747]
[1722342284901,0.89040293,66605.0,66604.0,0.0096747]
[1722342285119,0.87640293,66605.0,66604.0,0.0096747]
[1722342285316,0.8831149,66605.0,66604.0,0.0096747]
[1722342285536,0.1324229,66605.0,66604.0,0.0096747]
[1722342285747,0.007,66605.0,66604.0,0.1515747]
[1722342285884,0.007,66605.0,66604.0,0.1500205]
[1722342286255,0.757692,66605.0,66604.0,0.16468117]
[1722342286439,0.77366856,66605.0,66604.0,0.16468117]
[1722342286784,0.47339156,66605.0,66604.0,0.16468117]
[1722342287327,1.30579671,66605.0,66604.0,0.0855205]
[1722342287482,1.19751093,66605.0,66604.0,0.0081205]
[1722342287726,1.27285809,66605.0,66604.0,0.0081205]
[1722342289575,1.27318321,66605.0,66604.0,0.0081205]
[1722342290170,1.27318321,66605.0,66604.0,0.0090335]
[1722342292381,1.24961784,66605.0,66604.0,0.0090335]
[1722342292707,1.30172341,66605.0,66604.0,0.0090335]
[1722342293072,1.30201342,66605.0,66604.0,0.0090335]
[1722342294028,1.23331616,66605.0,66604.0,0.0090335]
[1722342294206,1.30211854,66605.0,66604.0,0.0090335]
[1722342294405,1.45281286,66605.0,66604.0,0.0090335]
[1722342295378,1.30211854,66605.0,66604.0,0.0090335]
[1722342295586,1.32568497,66605.0,66604.0,0.0090335]
[1722342296380,1.38678497,66605.0,66604.0,0.0090335]
[1722342296737,1.66349554,66605.0,66604.0,0.0090335]
[1722342297144,1.68649554,66605.0,66604.0,0.0090335]
[1722342297369,1.83718986,66605.0,66604.0,0.0090335]
[1722342298976,1.83842479,66605.0,66604.0,0.0090335]
[1722342299943,1.86199171,66605.0,66604.0,0.0090335]
[1722342301204,2.19226871,66605.0,66604.0,0.0090335]
[1722342301723,2.14870179,66605.0,66604.0,0.0090335]
[1722342302027,2.20072981,66605.0,66604.0,0.0090335]
[1722342302465,2.20137045,66605.0,66604.0,0.0090335]
[1722342302872,2.19437045,66605.0,66604.0,0.0090335]
[1722342303037,2.20837045,66605.0,66604.0,0.00272529]
[1722342303660,1.80274375,66605.0,66604.0,0.00272529]
[1722342303857,1.70539658,66605.0,66604.0,0.00272529]
[1722342306223,1.35135,66600.0,66599.0,0.009295]
[1722342306400,1.54075,66600.0,66599.0,0.009295]
[1722342306631,1.61218055,66600.0,66599.0,0.009295]
[1722342306961,1.76287487,66600.0,66599.0,0.009295]
[1722342307787,1.61218055,66600.0,66599.0,0.009295]
[1722342309104,1.63574921,66600.0,66599.0,0.009295]
[1722342310505,1.64974921,66600.0,66599.0,0.009295]
[1722342310969,1.57831866,66600.0,66599.0,0.009295]
[1722342311171,1.64842061,66600.0,66599.0,0.009295]
[1722342311523,1.64817458,66600.0,66599.0,0.009295]
[1722342312076,1.80791422,66600.0,66599.0,0.009295]
[1722342312372,2.00031422,66600.0,66599.0,0.009295]
[1722342313177,2.07851422,66600.0,66599.0,0.009295]
[1722342313340,2.00031422,66600.0,66599.0,0.009295]
[1722342314994,1.97674556,66600.0,66599.0,0.009295]
[1722342315537,1.75965124,66600.0,66599.0,0.009295]
[1722342315878,1.56725124,66600.0,66599.0,0.009295]
[1722342318211,1.59081951,66600.0,66599.0,0.009295]
[1722342318613,1.56725124,66600.0,66599.0,0.009295]
[1722342319031,1.56795208,66600.0,66599.0,0.009295]
[1722342319246,1.56675,66600.0,66599.0,0.009295]
[1722342319888,1.71744432,66600.0,66599.0,0.009295]
[1722342320095,1.71684494,66600.0,66599.0,0.009295]
[1722342320498,1.64662188,66600.0,66599.0,0.009295]
[1722342320732,1.56661625,66600.0,66599.0,0.009295]
[1722342321717,1.74122355,66600.0,66599.0,0.009295]
[1722342321930,1.7412234,66600.0,66599.0,0.009295]
[1722342322141,1.4409234,66600.0,66599.0,0.088895]
[1722342322604,1.28988452,66600.0,66599.0,0.088895]
[1722342323022,1.44092979,66600.0,66599.0,0.088895]
[1722342323455,1.28988452,66600.0,66599.0,0.088895]
[1722342323573,1.44093862,66600.0,66599.0,0.088895]
[1722342323992,1.21886213,66600.0,66599.0,0.088895]
[1722342324216,1.44057409,66600.0,66599.0,0.088895]
[1722342324447,1.28951979,66600.0,66599.0,0.088895]
[1722342324692,1.44071453,66600.0,66599.0,0.088895]
[1722342325720,0.11740868,66600.0,66599.0,0.153695]
[1722342325982,0.11740868,66600.0,66599.0,0.61829189]
[1722342325983,0.14337608,66600.0,66599.0,0.61829189]
[1722342326220,0.14337608,66600.0,66599.0,0.91859589]
[1722342326221,0.014,66600.0,66599.0,0.91859589]
[1722342326453,0.014,66600.0,66599.0,0.61829189]
[1722342326681,0.014,66600.0,66599.0,0.31798789]
[1722342326924,0.014,66600.0,66599.0,0.16783589]
[1722342328030,0.1,66603.0,66599.0,0.08823589]
[1722342328235,0.01681018,66602.0,66601.0,0.0802]
[1722342328468,0.10083,66604.0,66601.0,0.0802]
[1722342328689,0.0165584,66603.0,66601.0,0.09431872]
[1722342329097,0.0165584,66603.0,66601.0,0.0802]
[1722342329337,0.04012254,66603.0,66602.0,0.01411777]
[1722342329766,0.03997819,66603.0,66602.0,0.01411777]
[1722342330207,0.03997819,66603.0,66601.0,0.0802]
[1722342330430,0.21367257,66604.0,66601.0,0.0802]
[1722342330431,0.10183,66604.0,66601.0,0.0802]
[1722342330710,0.10183,66604.0,66600.0,0.0015542]
[1722342330711,0.10083,66604.0,66602.0,0.01411777]
[1722342330957,0.00083,66604.0,66603.0,0.1451]